bitfinex/quotes_BTCUSD_20251001
["timestamp","ask_amount","ask_price","bid_price","bid_amount"]
[1759278320612,0.02478,114000.0,113990.0,4.46309899]
[1759278322953,0.02278,114000.0,113990.0,4.45109899]
[1759278323369,0.02678,114000.0,113990.0,4.45109899]
[1759278323580,0.02278,114000.0,113990.0,4.45109899]
[1759278323920,0.02478,114000.0,113990.0,4.45109899]
[1759278324585,0.02278,114000.0,113990.0,4.45109899]
[1759278324992,0.02278,114000.0,113990.0,4.45909899]
[1759278325374,0.02278,114000.0,113990.0,4.45109899]
[1759278325716,0.02278,114000.0,113990.0,4.45509899]
[1759278326682,0.02278,114000.0,113990.0,4.54448446]
[1759278327372,0.02278,114000.0,113990.0,3.47396446]
[1759278327730,0.02278,114000.0,113990.0,4.54428446]
[1759278327930,0.02278,114000.0,113990.0,3.47396446]
[1759278328247,0.02278,114000.0,113990.0,4.54428446]
[1759278329690,0.02278,114000.0,113990.0,3.47396446]
[1759278329892,0.02278,114000.0,113990.0,4.54428446]
[1759278331584,0.0001225,114020.0,114010.0,0.5154232]
[1759278331783,0.0001225,114020.0,114010.0,3.3002202]
[1759278331933,0.0001225,114020.0,114010.0,4.3946002]
[1759278332815,0.0001225,114020.0,114010.0,4.3976002]
[1759278333299,0.0001225,114020.0,114010.0,4.15316503]
[1759278333659,0.0001225,114020.0,114010.0,4.32858823]
[1759278333847,0.0298025,114020.0,114010.0,4.39135083]
[1759278334342,0.0298025,114020.0,114010.0,4.32858823]
[1759278334698,0.0298025,114020.0,114010.0,3.25838823]
[1759278335088,0.0298025,114020.0,114010.0,4.32854823]
[1759278335440,0.0298025,114020.0,114010.0,4.3953451]
[1759278337779,0.0298025,114020.0,114010.0,3.3251851]
[1759278337997,0.0298025,114020.0,114010.0,4.3953451]
[1759278339710,0.0298025,114020.0,114010.0,3.3251851]
[1759278339909,0.0298025,114020.0,114010.0,4.3953451]
[1759278340312,0.0298025,114020.0,114010.0,3.3251851]
[1759278340511,0.0298025,114020.0,114010.0,4.3953451]
[1759278341311,0.0298025,114020.0,114010.0,3.3251851]
[1759278341930,0.0298025,114020.0,114010.0,4.12435707]
[1759278343236,0.0298025,114020.0,114010.0,4.12427707]
[1759278345005,0.0318525,114020.0,114010.0,3.05419707]
[1759278345206,0.0350425,114020.0,114010.0,3.87479707]
[1759278345409,0.0350425,114020.0,114010.0,4.12427707]
[1759278345624,0.0350425,114020.0,114010.0,3.05419707]
[1759278345993,0.0350425,114020.0,114010.0,4.12427707]
[1759278346380,0.0350425,114020.0,114010.0,3.05419707]
[1759278346567,0.0350425,114020.0,114010.0,4.12427707]
[1759278348065,0.0350425,114020.0,114010.0,3.05419707]
[1759278348662,0.0350425,114020.0,114010.0,4.12427707]
[1759278350424,0.0350425,114020.0,114010.0,4.46423707]
[1759278352044,0.0350425,114020.0,114010.0,4.21479707]
[1759278352249,0.0350425,114020.0,114010.0,4.46423707]
[1759278354261,0.0350425,114020.0,114010.0,4.12423707]
[1759278355000,0.0350425,114020.0,114010.0,3.05419707]
[1759278355001,0.29983579,114020.0,114010.0,3.05419707]
[1759278355551,0.29983579,114020.0,114010.0,4.12423707]
[1759278357257,0.29983579,114020.0,114010.0,2.87877387]
[1759278357471,0.29983579,114020.0,114010.0,1.16409687]
[1759278357680,0.29983579,114020.0,114010.0,1.33952007]
[1759278357882,0.29983579,114020.0,114010.0,1.16409687]
[1759278359066,0.29983579,114020.0,114010.0,1.33952007]
[1759278359483,0.29983579,114020.0,114010.0,1.2727232]
[1759278362220,0.11918797,114020.0,114010.0,4.3975202]
[1759278363383,0.11918797,114020.0,114010.0,4.4602828]
[1759278366881,0.11918797,114020.0,114010.0,4.52663229]
[1759278371361,0.0298025,114020.0,114010.0,4.52663229]
[1759278372797,0.0298025,114020.0,114010.0,3.48286467]
[1759278372971,0.0298025,114020.0,114010.0,4.55298467]
[1759278374485,0.0298025,114020.0,114010.0,3.48286467]
[1759278374685,0.0298025,114020.0,114010.0,4.55298467]
[1759278375427,0.0298025,114020.0,114010.0,3.48286467]
[1759278375667,0.0298025,114020.0,114010.0,4.55298467]
[1759278379751,0.0298025,114020.0,114010.0,4.09706467]
[1759278379957,0.0298025,114020.0,114010.0,4.55298467]
[1759278380317,0.0298025,114020.0,114010.0,4.46144712]
[1759278380517,0.0298025,114020.0,114010.0,3.39132712]
[1759278380712,0.0298025,114020.0,114010.0,4.46144712]
[1759278381732,0.0298025,114020.0,114010.0,4.37028712]
[1759278381947,0.0298025,114020.0,114010.0,4.46144712]
[1759278382936,0.0298025,114020.0,114010.0,3.39132712]
[1759278383136,0.0298025,114020.0,114010.0,4.46144712]
[1759278383974,0.0298025,114020.0,114010.0,3.39132712]
[1759278384182,0.0298025,114020.0,114010.0,4.46144712]
[1759278384503,0.0298025,114020.0,114010.0,4.00548712]
[1759278384708,0.0298025,114020.0,114010.0,4.46140712]
[1759278384924,0.0298025,114020.0,114010.0,3.39132712]
[1759278385266,0.0298025,114020.0,114010.0,4.46140712]
[1759278387788,0.0348025,114020.0,114010.0,4.46140712]
[1759278388102,0.03087713,114020.0,114010.0,4.46140712]
[1759278388304,0.02883713,114020.0,114010.0,4.46140712]
[1759278390166,0.02883713,114020.0,114010.0,3.39132712]
[1759278390375,0.03383713,114020.0,114010.0,3.45408972]
[1759278390582,0.20924495,114020.0,114010.0,3.81880972]
[1759278390814,0.29863042,114020.0,114010.0,4.00866652]
[1759278390959,0.29863042,114020.0,114010.0,0.02635238]
[1759278391135,0.29863042,114020.0,114010.0,0.84695238]
[1759278391489,0.29863042,114020.0,114010.0,1.07]
[1759278392438,0.29863042,114020.0,114010.0,1.2454232]
[1759278392819,0.29863042,114020.0,114010.0,1.27132248]
[1759278396017,0.29863042,114020.0,114010.0,1.09589928]
[1759278397691,0.29863042,114020.0,114010.0,0.02589928]
[1759278397891,0.29863042,114020.0,114010.0,0.82068]
[1759278398244,0.32495903,114020.0,114010.0,1.07008]
[1759278398470,0.1754232,114010.0,114000.0,0.0847026]
[1759278398613,0.26776867,114010.0,114000.0,3.9160456]
[1759278398814,0.29406867,114010.0,114000.0,3.9160456]
[1759278399042,0.29406867,114010.0,114000.0,3.60123206]
[1759278399241,0.29406867,114010.0,114000.0,2.87171206]
[1759278399443,0.29406867,114010.0,114000.0,0.84642646]
[1759278399640,0.32040031,114010.0,114000.0,1.10782646]
[1759278399808,0.32040031,114010.0,114000.0,0.012]
[1759278400012,0.32640031,114010.0,114000.0,0.71732]
[1759278400200,0.32640031,114010.0,114000.0,0.70532]
[1759278400396,0.32040031,114010.0,114000.0,0.71132]
[1759278400830,0.33140031,114010.0,114000.0,0.71132]
[1759278401832,0.32040031,114010.0,114000.0,0.70532]
[1759278402460,0.32040031,114010.0,114000.0,0.73160901]
[1759278402847,0.32040031,114010.0,114000.0,0.70532]
[1759278405628,0.32040031,114010.0,113980.0,0.18180679]
[1759278405871,0.26778406,114000.0,113990.0,3.32345669]
[1759278406064,0.29204406,114000.0,113990.0,0.63145369]
[1759278406268,0.29408406,114000.0,113990.0,0.63145369]
[1759278406820,0.29408406,114000.0,113990.0,0.88089369]
[1759278407020,0.29408406,114000.0,113990.0,0.70544]
[1759278407435,0.29408406,114000.0,113990.0,0.02591766]
[1759278407640,0.29408406,114000.0,113990.0,0.70544]
[1759278408403,0.30008406,114000.0,113990.0,0.71144]
[1759278409308,0.30008406,114000.0,113990.0,0.71148]
[1759278411875,0.30008406,114000.0,113990.0,0.006]
[1759278412055,0.30008406,114000.0,113990.0,0.71148]
[1759278412269,0.32641767,114000.0,113990.0,0.73783903]
[1759278414113,0.32641767,114000.0,113990.0,0.03235903]
[1759278414257,0.32641767,114000.0,113990.0,0.73783903]
[1759278418403,0.32641767,114000.0,113990.0,0.03235903]
[1759278418547,0.32641767,114000.0,113990.0,0.46204]
[1759278418739,0.32641767,114000.0,113990.0,0.71148]
[1759278419521,0.17546938,113980.0,113970.0,0.0004]
[1759278419659,0.26485485,113980.0,113970.0,3.853923]
[1759278419856,0.29286485,113980.0,113970.0,3.853923]
[1759278420070,0.29286485,113980.0,113970.0,4.05538708]
[1759278420293,0.29286485,113980.0,113970.0,3.87990231]
[1759278420715,0.29286485,113980.0,113970.0,3.88002481]
[1759278421157,0.29586485,113980.0,113970.0,3.88002481]
[1759278421900,0.29286485,113980.0,113970.0,3.88002481]
[1759278422327,0.29286485,113980.0,113970.0,3.89102481]
[1759278423982,0.29286485,113980.0,113970.0,2.7947255]
[1759278424135,0.29286485,113980.0,113970.0,0.4676025]
[1759278424335,0.31920387,113980.0,113970.0,0.7170825]
[1759278426730,0.31920387,113980.0,113970.0,0.0115225]
[1759278426931,0.31920387,113980.0,113970.0,0.7170825]
[1759278430693,0.11209547,113980.0,113970.0,4.01577027]
[1759278435162,0.11209547,113980.0,113970.0,4.38065027]
[1759278436205,0.11209547,113980.0,113970.0,3.31021027]
[1759278436415,0.11209547,113980.0,113970.0,4.38065027]
[1759278436654,0.11209547,113980.0,113970.0,3.31021027]
[1759278436871,0.11209547,113980.0,113970.0,4.38065027]
[1759278437334,0.11209547,113980.0,113970.0,3.31021027]
[1759278437540,0.11209547,113980.0,113970.0,3.92457027]
[1759278437761,0.11209547,113980.0,113970.0,4.38065027]
[1759278438404,0.11209547,113980.0,113970.0,4.28945027]
[1759278438605,0.11209547,113980.0,113970.0,4.38065027]
[1759278439043,0.02271,113980.0,113970.0,4.38065027]
[1759278439445,0.02271,113980.0,113970.0,3.31021027]
[1759278439665,0.02271,113980.0,113970.0,3.92457027]
[1759278439875,0.02271,113980.0,113970.0,4.38065027]
[1759278440232,0.02271,113980.0,113970.0,3.92457027]
[1759278440438,0.02271,113980.0,113970.0,4.38065027]
[1759278440607,0.02271,113980.0,113970.0,4.40698355]
[1759278442184,0.02271,113980.0,113970.0,3.33654355]
[1759278442361,0.02271,113980.0,113970.0,4.40698355]
[1759278443039,0.02271,113980.0,113970.0,4.47434353]
[1759278444181,0.02271,113980.0,113970.0,4.53710613]
[1759278445982,0.02271,113980.0,113970.0,3.46666613]
[1759278446292,0.02271,113980.0,113970.0,4.53706613]
[1759278448118,0.02271,113980.0,113970.0,3.46666613]
[1759278448327,0.02271,113980.0,113970.0,4.53706613]
[1759278449446,0.02271,113980.0,113970.0,4.56721803]
[1759278449619,0.02271,113980.0,113970.0,4.57179497]
[1759278451050,0.02271,113980.0,113970.0,3.59078044]
[1759278451256,0.02271,113980.0,113970.0,4.59841784]
[1759278451830,0.02271,113980.0,113970.0,4.59833784]
[1759278452006,0.02271,113980.0,113970.0,4.58733784]
[1759278452416,0.02271,113980.0,113970.0,4.59133784]
[1759278452916,0.02471,113980.0,113970.0,4.59133784]
[1759278454739,0.02471,113980.0,113970.0,3.52101784]
[1759278454932,0.02471,113980.0,113970.0,4.50013784]
[1759278455126,0.02471,113980.0,113970.0,4.59133784]
[1759278456556,0.02471,113980.0,113970.0,4.35177238]
[1759278456763,0.02471,113980.0,113970.0,4.35177257]
[1759278456967,0.02471,113980.0,113970.0,4.07121734]
[1759278457166,0.02471,113980.0,113970.0,4.13422371]
[1759278457497,0.02471,113980.0,113970.0,4.59026371]
[1759278457846,0.02471,113980.0,113970.0,3.51994371]
[1759278458040,0.02471,113980.0,113970.0,4.59022371]
[1759278458586,0.02471,113980.0,113970.0,3.51994371]
[1759278458799,0.02987,113980.0,113970.0,4.52721734]
[1759278459000,0.02471,113980.0,113970.0,4.52721734]
[1759278459814,0.02471,113980.0,113970.0,3.45693734]
[1759278460230,0.02471,113980.0,113970.0,4.07117734]
[1759278460430,0.02471,113980.0,113970.0,4.52721734]
[1759278460641,0.02471,113980.0,113970.0,3.36755187]
[1759278460934,0.02471,113980.0,113970.0,4.43783187]
[1759278464404,0.02471,113980.0,113970.0,4.50083824]
[1759278464955,0.02471,113980.0,113970.0,4.89022371]
[1759278466696,0.02471,113980.0,113970.0,4.90548784]
[1759278468873,1e-08,113980.0,113970.0,4.82721734]
[1759278469773,1e-08,113980.0,113970.0,5.12721734]
[1759278470127,1e-08,113980.0,113970.0,5.13928784]
[1759278470340,1e-08,113980.0,113970.0,5.23048784]
[1759278470787,0.07295609,114020.0,113970.0,5.22648784]
[1759278470993,0.07295609,114020.0,114010.0,0.9714632]
[1759278471204,0.07295609,114020.0,114010.0,3.9405082]
[1759278471581,0.09640609,114020.0,114010.0,3.9405082]
[1759278471973,0.02345,114020.0,114010.0,3.9405082]
[1759278472172,0.02945,114020.0,114010.0,3.9405082]
[1759278472906,0.03045,114020.0,114010.0,3.9405082]
[1759278473483,0.02345,114020.0,114010.0,3.9405082]
[1759278473809,0.02345,114020.0,114010.0,3.9445082]
[1759278474343,0.02345,114020.0,114010.0,4.01099585]
[1759278474485,0.02345,114020.0,114010.0,3.30555585]
[1759278474831,0.02345,114020.0,114010.0,4.37571585]
[1759278474995,0.02345,114020.0,114010.0,3.30555585]
[1759278475351,0.02345,114020.0,114010.0,4.37571585]
[1759278477142,0.02345,114020.0,114010.0,3.30555585]
[1759278477289,0.02345,114020.0,114010.0,4.37571585]
[1759278480054,0.02345,114020.0,114010.0,3.91967585]
[1759278480249,0.02345,114020.0,114010.0,4.37559585]
[1759278480866,0.02542,114020.0,114010.0,4.37559585]
[1759278481070,0.02542,114020.0,114010.0,3.36860905]
[1759278481273,0.02345,114020.0,114010.0,4.43860905]
[1759278481498,0.02345,114020.0,114010.0,4.34744905]
[1759278481782,0.02345,114020.0,114010.0,3.36860905]
[1759278481783,0.02853,114020.0,114010.0,3.36860905]
[1759278482340,0.02853,114020.0,114010.0,4.43860905]
[1759278482718,0.02853,114020.0,114010.0,4.34744905]
[1759278482942,0.02853,114020.0,114010.0,4.17796138]
[1759278483143,0.02853,114020.0,114010.0,4.26222458]
[1759278483389,0.02853,114020.0,114010.0,4.35338458]
[1759278483643,0.02853,114020.0,114010.0,3.28338458]
[1759278483816,0.02853,114020.0,114010.0,4.35338458]
[1759278485202,0.02853,114020.0,114010.0,3.28338458]
[1759278485620,0.02853,114020.0,114010.0,4.35338458]
[1759278486885,0.02853,114020.0,114010.0,3.28338458]
[1759278487183,0.02853,114020.0,114010.0,4.35338458]
[1759278487394,0.02853,114020.0,114010.0,3.28338458]
[1759278487523,0.02853,114020.0,114010.0,4.35338458]
[1759278490514,0.02853,114020.0,114010.0,3.28338458]
[1759278490719,0.02853,114020.0,114010.0,4.35338458]
[1759278493203,0.02853,114020.0,114010.0,4.41643778]
[1759278495422,0.02345,114020.0,114010.0,4.41643778]
[1759278501356,0.02345,114020.0,114010.0,4.47292195]
[1759278501754,0.02345,114020.0,114010.0,4.57751127]
[1759278502461,0.02345,114020.0,114010.0,4.57351127]
[1759278502857,0.02345,114020.0,114010.0,4.58851127]
[1759278503318,0.02645,114020.0,114010.0,4.58851127]
[1759278505547,0.02645,114020.0,114010.0,3.51851127]
[1759278506146,0.02645,114020.0,114010.0,4.58835127]
[1759278506743,0.02645,114020.0,114010.0,4.13247127]
[1759278506932,0.02645,114020.0,114010.0,4.58835127]
[1759278507139,0.02645,114020.0,114010.0,3.51851127]
[1759278507334,0.02851,114020.0,114010.0,3.7155753]
[1759278507556,0.03167,114020.0,114010.0,3.82347467]
[1759278507758,0.03167,114020.0,114010.0,4.47563385]
[1759278508122,0.03167,114020.0,114010.0,3.67975385]
[1759278508324,0.03167,114020.0,114010.0,3.40419503]
[1759278508529,0.03167,114020.0,114010.0,4.44931503]
[1759278509331,0.03167,114020.0,114010.0,3.37947503]
[1759278509530,0.03167,114020.0,114010.0,4.44931503]
[1759278510069,0.03167,114020.0,114010.0,3.99343503]
[1759278510301,0.03167,114020.0,114010.0,4.44931503]
[1759278514094,0.03167,114020.0,114010.0,3.37947503]
[1759278514308,0.03167,114020.0,114010.0,4.44931503]
[1759278522817,0.03167,114020.0,114010.0,3.37947503]
[1759278523057,0.29646329,114020.0,114010.0,3.20405183]
[1759278523260,0.29646329,114020.0,114010.0,4.27389183]
[1759278523408,0.29646329,114020.0,114010.0,1.23851918]
[1759278523608,0.29646329,114020.0,114010.0,0.015]
[1759278523869,0.29646329,114020.0,114010.0,1.58484]
[1759278524026,0.29346329,114020.0,114010.0,1.06984]
[1759278524223,0.29346329,114020.0,114010.0,1.08384]
[1759278524460,0.29646329,114020.0,114010.0,1.08384]
[1759278524623,0.29646329,114020.0,114010.0,1.06984]
[1759278524852,0.29346329,114020.0,114010.0,1.06984]
[1759278525062,0.30146329,114020.0,114010.0,1.06984]
[1759278525770,0.1754232,114010.0,114000.0,0.42562918]
[1759278525979,0.26686867,114010.0,114000.0,3.12256418]
[1759278526184,0.29316867,114010.0,114000.0,3.12256418]
[1759278526384,0.29316867,114010.0,114000.0,3.94324418]
[1759278526588,0.29316867,114010.0,114000.0,4.19248418]
[1759278526936,0.29316867,114010.0,114000.0,4.20048418]
[1759278527151,0.29316867,114010.0,114000.0,4.137565]
[1759278527364,0.29616867,114010.0,114000.0,4.137565]
[1759278529810,0.02614,114010.0,114000.0,4.31300359]
[1759278530438,0.02614,114010.0,114000.0,4.39127409]
[1759278533601,0.02614,114010.0,114000.0,4.41759767]
[1759278534496,0.02614,114010.0,114000.0,3.34767767]
[1759278534734,0.02614,114010.0,114000.0,4.41759767]
[1759278536559,0.02614,114010.0,114000.0,4.44774957]
[1759278536777,0.02614,114010.0,114000.0,4.53713504]
[1759278537669,0.02314,114010.0,114000.0,4.52913504]
[1759278538018,0.02814,114010.0,114000.0,4.52913504]
[1759278538434,0.02814,114010.0,114000.0,4.53713504]
[1759278539070,0.07618609,114040.0,114030.0,0.51539244]
[1759278539278,0.16571156,114040.0,114030.0,3.57543744]
[1759278539473,0.16786156,114040.0,114030.0,3.59987744]
[1759278540200,0.09490547,114040.0,114030.0,3.59987744]
[1759278540401,0.09490547,114040.0,114030.0,3.66621529]
[1759278540556,0.10790547,114040.0,114030.0,3.66621529]
[1759278540762,0.01314,114040.0,114030.0,3.66621529]
[1759278541237,0.04176,114040.0,114030.0,3.66621529]
[1759278541647,0.04176,114040.0,114030.0,4.39569529]
[1759278541822,0.02376,114040.0,114030.0,4.39569529]
[1759278542705,0.02376,114040.0,114030.0,4.14649529]
[1759278542949,0.02376,114040.0,114030.0,4.39569529]
[1759278543105,0.02376,114040.0,114030.0,3.93977529]
[1759278543310,0.02376,114040.0,114030.0,4.39569529]
[1759278543790,0.03191,114040.0,114030.0,4.30445529]
[1759278543991,0.03514,114040.0,114030.0,4.39561529]
[1759278544248,0.02976,114040.0,114030.0,4.39561529]
[1759278546026,0.02976,114040.0,114030.0,3.32581529]
[1759278546249,0.02976,114040.0,114030.0,4.39561529]
[1759278547720,0.02976,114040.0,114030.0,4.30445529]
[1759278547955,0.02976,114040.0,114030.0,3.32581529]
[1759278548070,0.02976,114040.0,114030.0,4.39561529]
[1759278548272,0.02976,114040.0,114030.0,3.32581529]
[1759278548624,0.02976,114040.0,114030.0,4.39561529]
[1759278548994,0.02976,114040.0,114030.0,3.38877228]
[1759278549202,0.03191,114040.0,114030.0,3.32581529]
[1759278549541,0.03514,114040.0,114030.0,4.39557529]
[1759278550352,0.03514,114040.0,114030.0,3.32581529]
[1759278550687,0.03514,114040.0,114030.0,4.39557529]
[1759278552591,0.03514,114040.0,114030.0,3.32581529]
[1759278552792,0.03514,114040.0,114030.0,4.39557529]
[1759278553965,0.03514,114040.0,114030.0,4.30441529]
[1759278554145,0.03514,114040.0,114030.0,4.39557529]
[1759278554294,0.03514,114040.0,114030.0,3.32581529]
[1759278554648,0.03514,114040.0,114030.0,4.39557529]
[1759278555190,0.03514,114040.0,114030.0,4.30441529]
[1759278555393,0.03514,114040.0,114030.0,4.39557529]
[1759278556460,0.21051706,114040.0,114030.0,3.69053529]
[1759278556614,0.29990253,114040.0,114030.0,3.084085]
[1759278556820,0.29990253,114040.0,114030.0,0.02444]
[1759278557022,0.29990253,114040.0,114030.0,1.0942]
[1759278562280,0.29990253,114040.0,114030.0,0.02444]
[1759278562527,0.29990253,114040.0,114030.0,0.48032]
[1759278562729,0.29990253,114040.0,114030.0,0.72948]
[1759278563284,0.37623105,114040.0,114030.0,0.72948]
[1759278563632,0.37023105,114040.0,114030.0,0.72948]
[1759278563954,0.37023105,114040.0,114030.0,0.73448]
[1759278564582,0.37023105,114040.0,114030.0,0.72948]
[1759278565194,0.37623105,114040.0,114030.0,0.72948]
[1759278565623,0.37023105,114040.0,114030.0,0.72948]
[1759278566013,0.37623105,114040.0,114030.0,0.72948]
[1759278566996,0.37623105,114040.0,114000.0,0.10020452]
[1759278566997,0.1754232,114010.0,114000.0,0.10020452]
[1759278567150,0.27006867,114010.0,114000.0,3.27576952]
[1759278567342,0.29441867,114010.0,114000.0,2.612779]
[1759278567555,0.29441867,114010.0,114000.0,2.78821721]
[1759278567906,0.29441867,114010.0,114000.0,2.79698913]
[1759278568270,0.29441867,114010.0,114000.0,3.03737721]
[1759278569050,0.29441867,114010.0,114000.0,3.05337721]
[1759278569254,0.29541867,114010.0,114000.0,3.05337721]
[1759278571233,0.29541867,114010.0,114000.0,2.877939]
[1759278571918,0.29541867,114010.0,114000.0,2.628779]
[1759278572120,0.29541867,114010.0,114000.0,2.877939]
[1759278575219,0.29541867,114010.0,114000.0,3.698739]
[1759278576267,0.29541867,114010.0,114000.0,2.628779]
[1759278576468,0.29541867,114010.0,114000.0,3.698739]
[1759278576702,0.29541867,114010.0,114000.0,2.628779]
[1759278576888,0.29541867,114010.0,114000.0,3.698739]
[1759278579182,0.29316438,114010.0,114000.0,3.698739]
[1759278581607,0.29316438,114010.0,114000.0,2.628779]
[1759278581815,0.29316438,114010.0,114000.0,3.698779]
[1759278582477,0.29316438,114010.0,114000.0,2.628779]
[1759278582808,0.29316438,114010.0,114000.0,3.698779]
[1759278583147,0.29316438,114010.0,114000.0,2.628779]
[1759278583349,0.29316438,114010.0,114000.0,3.698779]
[1759278586413,0.29316438,114010.0,114000.0,2.628779]
[1759278586560,0.29316438,114010.0,114000.0,3.698779]
[1759278586965,0.29316438,114010.0,114000.0,2.628779]
[1759278587375,0.29316438,114010.0,114000.0,0.72184]
[1759278587635,0.29316438,114010.0,114000.0,0.016]
[1759278588064,0.29316438,114010.0,114000.0,0.68652]
[1759278588282,0.29316438,114010.0,114000.0,0.63676]
[1759278588420,0.29216438,114010.0,114000.0,0.63676]
[1759278588625,0.29216438,114010.0,114000.0,0.65376]
[1759278589284,0.28915867,114010.0,114000.0,3.249539]
[1759278589486,0.11373547,114010.0,114000.0,3.42497759]
[1759278589681,0.11973547,114010.0,114000.0,3.43097759]
[1759278591244,0.03035,114010.0,114000.0,3.43097759]
[1759278591754,0.03035,114010.0,114000.0,3.77097759]
[1759278592968,0.03009937,114010.0,114000.0,3.77097759]
[1759278593120,0.03009937,114010.0,114000.0,3.13421759]
[1759278593327,0.03009937,114010.0,114000.0,4.20597759]
[1759278594567,0.03009937,114010.0,114000.0,3.13421759]
[1759278594746,0.03009937,114010.0,114000.0,4.20605759]
[1759278599309,0.03009937,114010.0,114000.0,3.13421759]
[1759278599521,0.03009937,114010.0,114000.0,4.20597759]
[1759278599817,0.03009937,114010.0,114000.0,4.11477759]
[1759278600070,0.03009937,114010.0,114000.0,4.20597759]
[1759278600274,0.03009937,114010.0,114000.0,3.13421759]
[1759278600707,0.03009937,114010.0,114000.0,4.20605759]
[1759278604574,0.03009937,114010.0,114000.0,4.23620949]
[1759278606530,0.03009937,114010.0,114000.0,4.2991745]
[1759278606939,0.03009937,114010.0,114000.0,4.38855997]
[1759278607146,0.03009937,114010.0,114000.0,4.32559496]
[1759278607147,1e-08,114010.0,114000.0,4.32559496]
[1759278607348,1e-08,114010.0,114000.0,4.3885419]
[1759278607624,1e-08,114010.0,114000.0,3.9566919]
[1759278608012,1e-08,114010.0,114000.0,4.4126119]
[1759278608438,1e-08,114010.0,114000.0,3.3409719]
[1759278608566,0.07309609,114040.0,114030.0,0.51539244]
[1759278608761,0.07309609,114040.0,114030.0,4.19977144]
[1759278609020,0.07309609,114040.0,114030.0,4.22404144]
[1759278609392,0.09708609,114040.0,114030.0,4.22404144]
[1759278610312,0.02413,114040.0,114030.0,4.22404144]
[1759278610935,0.03013,114040.0,114030.0,4.22404144]
[1759278611539,0.03413,114040.0,114030.0,4.22404144]
[1759278611741,0.02813,114040.0,114030.0,4.28937946]
[1759278612150,0.02713,114040.0,114030.0,3.21777946]
[1759278612328,0.02713,114040.0,114030.0,4.29029946]
[1759278613349,0.02713,114040.0,114030.0,4.29021946]
[1759278613686,0.02713,114040.0,114030.0,4.29013946]
[1759278615050,0.02713,114040.0,114030.0,3.21877946]
[1759278615269,0.02713,114040.0,114030.0,4.29009946]
[1759278615687,0.02713,114040.0,114030.0,4.19893946]
[1759278616002,0.03212,114040.0,114030.0,4.19889946]
[1759278616198,0.02713,114040.0,114030.0,4.29005946]
[1759278617020,0.02713,114040.0,114030.0,3.21877946]
[1759278617374,0.02713,114040.0,114030.0,3.83413946]
[1759278617621,0.02713,114040.0,114030.0,4.29001946]
[1759278620235,0.03232,114040.0,114030.0,4.29001946]
[1759278620441,0.02713,114040.0,114030.0,4.29001946]
[1759278620766,0.02922,114040.0,114030.0,4.29001946]
[1759278621351,0.02713,114040.0,114030.0,4.29001946]
[1759278624085,0.02713,114040.0,114030.0,3.83389946]
[1759278624279,0.02713,114040.0,114030.0,3.21877946]
[1759278624481,0.12170547,114040.0,114030.0,4.28977946]
[1759278624663,0.29708253,114040.0,114030.0,3.21877946]
[1759278624864,0.29708253,114040.0,114030.0,4.28981946]
[1759278625175,0.29708253,114040.0,114030.0,3.94981946]
[1759278625783,0.29708253,114040.0,114030.0,2.70338702]
[1759278626097,0.29708253,114040.0,114030.0,3.77438702]
[1759278626501,0.29708253,114040.0,114030.0,2.87877946]
[1759278626709,0.29708253,114040.0,114030.0,3.94977946]
[1759278627265,0.12170547,114040.0,114030.0,3.94977946]
[1759278631583,0.11651547,114040.0,114030.0,3.94977946]
[1759278631946,0.02713,114040.0,114030.0,4.28977946]
[1759278632143,0.03232,114040.0,114030.0,3.21877946]
[1759278632368,0.03232,114040.0,114030.0,3.83377946]
[1759278632569,0.03232,114040.0,114030.0,4.28965946]
[1759278639431,0.03217007,114040.0,114030.0,4.28965946]
[1759278641070,0.02907007,114040.0,114030.0,4.28965946]
[1759278642307,0.02698007,114040.0,114030.0,4.28965946]
[1759278643162,0.02698007,114040.0,114030.0,3.21877946]
[1759278643302,0.03217007,114040.0,114030.0,4.28933946]
[1759278644168,0.03217007,114040.0,114030.0,3.21877946]
[1759278644526,0.03217007,114040.0,114030.0,4.28929946]
[1759278645124,0.03217007,114040.0,114030.0,3.21877946]
[1759278645360,0.03217007,114040.0,114030.0,4.28929946]
[1759278646153,0.03217007,114040.0,114030.0,3.83341946]
[1759278646360,0.03217007,114040.0,114030.0,4.28929946]
[1759278647481,0.03217007,114040.0,114030.0,4.19809946]
[1759278647686,0.03217007,114040.0,114030.0,4.28921946]
[1759278649092,0.03217007,114040.0,114030.0,3.21877946]
[1759278649300,0.03217007,114040.0,114030.0,4.28917946]
[1759278649654,0.03217007,114040.0,114030.0,3.77282702]
[1759278649876,0.03217007,114040.0,114030.0,3.21877946]
[1759278650086,0.03217007,114040.0,114030.0,4.28925946]
[1759278650282,0.03217007,114040.0,114030.0,4.3522064]
[1759278653695,0.2969326,114040.0,114030.0,3.04338702]
[1759278653853,0.2969326,114040.0,114030.0,4.28921946]
[1759278655790,0.2969326,114040.0,114030.0,4.00615346]
[1759278658442,0.2969326,114040.0,114030.0,3.83076102]
[1759278658637,0.2969326,114040.0,114030.0,2.42032102]
[1759278658862,0.2969326,114040.0,114030.0,3.03480102]
[1759278659064,0.2969326,114040.0,114030.0,3.39952102]
[1759278659263,0.2969326,114040.0,114030.0,3.49068102]
[1759278659842,0.2969326,114040.0,114030.0,3.66607346]
[1759278660047,0.2969326,114040.0,114030.0,2.59571346]
[1759278660252,0.2969326,114040.0,114030.0,3.49072102]
[1759278660893,0.2969326,114040.0,114030.0,3.66611346]
[1759278661658,0.2969326,114040.0,114030.0,3.49072102]
[1759278669296,0.2969326,114040.0,114030.0,1.16100802]
[1759278669687,0.29421302,114040.0,114030.0,1.16100802]
[1759278671068,0.29421302,114040.0,114030.0,1.16088802]
[1759278671432,0.29421302,114040.0,114030.0,1.16084802]
[1759278672274,0.29421302,114040.0,114030.0,0.84587]
[1759278672494,0.29421302,114040.0,114030.0,0.02527]
[1759278672824,0.29421302,114040.0,114030.0,0.01877]
[1759278672825,0.32053965,114040.0,114030.0,0.01877]
[1759278673035,0.3287534,114040.0,114030.0,0.47465]
[1759278673249,0.3257534,114040.0,114030.0,0.72681]
[1759278673491,0.3559053,114040.0,114030.0,0.72681]
[1759278674354,0.1754232,114010.0,113980.0,0.18059907]
[1759278674581,0.26480867,114010.0,114000.0,0.09116]
[1759278674800,0.27007867,114010.0,114000.0,0.09116]
[1759278675148,0.27007867,114010.0,114000.0,0.45592]
[1759278675390,0.29288867,114010.0,114000.0,0.45592]
[1759278675545,0.29288867,114010.0,114000.0,0.70936]
[1759278675924,0.29288867,114010.0,114000.0,0.72336]
[1759278676108,0.29288867,114010.0,114000.0,0.45592]
[1759278677277,0.29888867,114010.0,114000.0,0.70936]
[1759278678844,0.29888867,114010.0,114000.0,0.6182]